Cogmind - Beta 16.1 @@@ ROGUE MODE // 2026.05.01 @ 01:07:40 Player: Thqwib-Linux Result: Destroyed by TG-K7E(R) with Subdweller Beam Cannon Performance ------------- Evolutions (0) 0 Regions Visited (2) 400 Robots Destroyed (22) 110 Value Destroyed (591) 591 Prototype IDs (2) 40 Alien Tech Used (0) 0 Bonus (0) 0 TOTAL SCORE: 1141 Bonus ------- None Cogmind --------- Core Integrity 0/250 Matter 256/300 Energy 250/250 System Corruption 4% Temperature Cool (9) Movement Treading (160) Location -10/Subcaves Parts ------- > --- POWER (1) -------- Ion Engine > --- PROPULSION (2) --- Light Treads Light Treads > --- UTILITY (2) ------ Improved Heat Sink Large Storage Unit > --- WEAPON (2) ------- Beam Cannon Subdweller Machine Gun > --- INVENTORY (15) --- Compact Wheel Subdweller Monowheel High-capacity Storage Unit Light Armor Plating Small Laser Subdweller Laser Peak State ------------ > --- POWER ------------ Ion Engine > --- PROPULSION ------- Light Treads Subdweller Monowheel > --- UTILITY ---------- Improved Heat Sink Large Storage Unit > --- WEAPON ----------- Subdweller Laser Beam Cannon > --- INVENTORY -------- Ion Engine Light Treads Compact Wheel High-capacity Storage Unit Light Armor Plating Small Laser Small Laser [Rating: 11] Favorites ----------- Power Ion Engine Engine Ion Engine Propulsion Light Treads Treads Light Treads Leg Aluminum Leg Wheel Compact Wheel Utility Large Storage Unit Device Improved Heat Sink Storage Large Storage Unit Weapon Small Laser Energy Gun Small Laser Energy Cannon Beam Cannon Ballistic Gun Light Assault Rifle Build | -11 -10 -10 ------- Run | Yrd Mat Sub Slots Evolved . | . . . Power . | . . . Propulsion . | . . . Utility . | . . . Weapon . | . . . Parts Attached 20 | 3 9 8 Power 2 | . 1 1 Engine 2 | . 1 1 Core . | . . . Reactor . | . . . Propulsion 8 | 2 2 4 Treads 2 | 1 . 1 Leg . | . . . Wheel 6 | 1 2 3 Hover . | . . . Flight . | . . . Utility 4 | . 4 . Device 2 | . 2 . Storage 2 | . 2 . Processor . | . . . Hackware . | . . . Protection . | . . . Artifact . | . . . Weapon 6 | 1 2 3 Energy Gun 3 | . 2 1 Energy Cannon 1 | . . 1 Ballistic Gun 2 | 1 . 1 Ballistic Cannon . | . . . Launcher . | . . . Special Weapon . | . . . Impact Weapon . | . . . Slashing Weapon . | . . . Piercing Weapon . | . . . Special Melee Weapon . | . . . Unidentified Prototypes . | . . . Parts Lost 4 | . 1 3 Power 1 | . . 1 Propulsion 2 | . 1 1 Utility . | . . . Weapon 1 | . . 1 Highest Loss Streak 2 | . 1 2 To Critical Strikes . | . . . Average Backups 6 | 4 6 6 Power . | 1 1 . Propulsion 2 | 2 2 1 Utility 1 | . 1 2 Weapon 1 | 1 . 1 Tool/Special . | . . . Unused Backups 9 | . 6 3 Power 2 | . 2 . Propulsion 2 | . 1 1 Utility 4 | . 2 2 Weapon 1 | . 1 . Tool/Special . | . . . Average Slot Usage (%) 97 | . 96 99 Engine 13 | . 14 13 Treads 14 | . 13 15 Wheel 13 | . 14 11 Device 12 | . 11 14 Storage 14 | . 14 14 Energy Gun 21 | . 25 17 Energy Cannon 4 | . . 10 Ballistic Gun 1 | . 2 . Peak Build Rating 11 | 6 9 11 Average Rating 8 | 6 7 10 On Entrance 7 | 6 6 9 Avg Prop Armor Cover (%) 11 | 3 11 11 Naked Turns . | . . . Heaviest Build 33 | 10 29 33 Greatest Support 40 | 20 20 40 Greatest Overweight (x) 1 | . 1 1 Average Overweight (x) . | . . . Largest Inventory Capacity 15 | 8 15 15 Average Capacity 13 | 8 12 15 Most Carried 9 | 6 9 7 Average Carried 6 | 4 6 6 Final Capacity 15 | 8 15 15 Final Carried 7 | 5 7 6 Class Distribution -------------------- 53% | Mutant 46% | Scavenger-Mutant Dominant Class ---------------- Mutant | -10/Materials Scavenger-Mutant | -10/Subcaves Resources | -11 -10 -10 ----------- Run | Yrd Mat Sub Matter Collected 470 | 233 157 80 Remotely . | . . . Salvage Created 895 | 114 600 181 Parts 53 | 5 30 18 Haulers Intercepted 1 | . 1 . Recyclers Shooed 4 | 1 3 . Parts Field Recycled . | . . . Retrieved Matter . | . . . Parts Self-Destructed 9 | . . 9 Prevented 2 | . . 2 Parts Restored . | . . . Kills | -11 -10 -10 ------- Run | Yrd Mat Sub Combat Hostiles Destroyed 17 | . 13 4 Guns 14 | . 13 1 Cannons 3 | . . 3 Classes Destroyed 7 | 2 4 1 Worker 1 | . 1 . Tunneler 1 | 1 . . Hauler 1 | . 1 . Recycler 2 | 1 1 . Swarmer 3 | . 3 . Grunt 10 | . 10 . Subdweller 4 | . . 4 Best Kill Streak 3 | 2 3 1 Combat Bots Only 3 | . 3 1 Max Kills in Single Turn 1 | 1 1 1 Gunslinging . | . . . Exploded . | . . . Melee . | . . . Uniques/NPCs Destroyed . | . . . Combat | -11 -10 -10 -------- Run | Yrd Mat Sub Hostile Shots Fired 109 | . 63 46 Missed 31 | . 19 12 Hits 78 | . 44 34 Projectile 78 | . 44 34 Critical Strikes 5 | . 3 2 Damage Taken 1273 | . 509 764 Core 263 | . 134 129 Absorbed by Shields . | . . . Regen/Repaired (Parts) 205 | . 205 . Core Remaining (%) 100 | 100 . . Volleys Fired 88 | 3 54 31 Largest 2 | 2 2 2 Hottest 120 | 60 90 120 Shots Fired 173 | 6 108 59 Gun 149 | 6 108 35 Cannon 24 | . . 24 Launcher . | . . . Special . | . . . Kinetic 17 | 3 7 7 Thermal 156 | 3 101 52 Explosive . | . . . Electromagnetic . | . . . Robot Hit Streak 22 | 3 13 22 Robot Miss Streak 4 | 1 4 2 Penetration Max . | . . . Secondary Targets 2 | . 2 . Max Gunslinging Chain 1 | . 1 . Shots Hit Robots 123 | 4 71 48 Core Hits 43 | 3 31 9 Critical Kills . | . . . Critical Parts Destroyed . | . . . Critical Strikes 5 | . 3 2 Burn 5 | . 3 2 Melee Attacks . | . . . Impact . | . . . Slashing . | . . . Piercing . | . . . Sneak Attacks . | . . . Combat Hostiles . | . . . Follow-up Attacks . | . . . Damage Inflicted 1645 | 41 843 761 Guns 1308 | 41 843 424 Cannons 337 | . . 337 Explosions . | . . . Melee . | . . . Ramming . | . . . Kinetic 159 | 18 31 110 Thermal 1486 | 23 812 651 Explosive . | . . . Electromagnetic . | . . . Impact . | . . . Slashing . | . . . Piercing . | . . . Highest Corruption 4 | . 4 4 Average Corruption 3 | . 3 4 Corruption Purged . | . . . Corruption Blocked . | . . . Effects 28 | . 15 13 Message Errors 11 | . 5 6 Matter Fused 7 | . 4 3 Heat Flow Errors 4 | . 3 1 Energy Discharges 3 | . 2 1 Parts Rejected 1 | . . 1 Data Loss (minor) 2 | . 1 1 Overload Shots . | . . . Overflow Damage . | . . . Projectiles . | . . . Explosions . | . . . Melee . | . . . Knockbacks . | . . . Impact . | . . . Kinetic . | . . . Secondary . | . . . Self-Inflicted Damage . | . . . Shots . | . . . Rammed . | . . . Targets Rammed . | . . . Kicked . | . . . Crushed . | . . . Highest Temperature 296 | 20 296 255 Average Temperature 68 | 15 63 119 Received Heat Transfer 648 | . 246 402 Siege Activations . | . . . Martial Activations . | . . . Shielding Activations . | . . . Robots Disrupted . | . . . Combat Hostiles . | . . . Robots Corrupted . | . . . Combat Hostiles . | . . . Parts Fried . | . . . Impact Corruptions . | . . . Robots Melted . | . . . Combat Hostiles . | . . . Parts Melted 7 | . 7 . Heat Transferred 3904 | 50 2343 1511 Parts Sabotaged . | . . . Parts Stolen . | . . . Parts Stripped . | . . . Power Chain Reactions . | . . . Alert | -11 -10 -10 ------- Run | Yrd Mat Sub Maximum Alert Level . | . . . Low Security (%) 100 | 100 100 . Level 1 . | . . . Level 2 . | . . . Level 3 . | . . . Level 4 . | . . . Level 5 . | . . . High Security . | . . . Max Security . | . . . Peak Influence 153 | 10 153 . Initial . | . . . Average 65 | 3 68 . Influence Increases 402 | 10 392 . Destroy 0b10 Robot/C 260 | . 260 . Destroy 0b10 Robot/NC 25 | 10 15 . Destroy Leader 72 | . 72 . Successful Hack 14 | . 14 . Select Force Hacks 30 | . 30 . Destroy Structure 1 | . 1 . Influence Decreases 402 | 10 271 121 Entered New Map 59 | . . 59 Time Decay 333 | 10 261 62 Lost Part 10 | . 10 . Squads Dispatched 4 | . 4 . Investigation 2 | . 2 . Extermination . | . . . Reinforcement 2 | . 2 . Assault . | . . . Garrison . | . . . Intercept . | . . . Searches Triggered . | . . . Construction Impeded . | . . . Haulers Reinforced . | . . . Active Scanning Responses . | . . . Cargo Convoy Interrupts . | . . . Stealth | -11 -10 -10 --------- Run | Yrd Mat Sub Distress Signals 2 | . 2 . Communications Jammed . | . . . Distress Signals . | . . . Times Spotted 24 | . 18 6 Peak Tracking Total 5 | . 5 2 Tactical Retreats . | . . . Traps | -11 -10 -10 ------- Run | Yrd Mat Sub Traps Triggered 3 | . 3 . Indirectly . | . . . Trap Hack Attempts . | . . . Triggered . | . . . Disarmed . | . . . Reprogrammed . | . . . Reused . | . . . Traps Extracted . | . . . Installed . | . . . Triggered . | . . . Machines | -11 -10 -10 ---------- Run | Yrd Mat Sub Machines Disabled . | . . . Max in Single Turn . | . . . Machines Repaired . | . . . Machines Dismantled . | . . . Machines Sabotaged . | . . . Overloaded Fab Kills . | . . . Hacking | -11 -10 -10 --------- Run | Yrd Mat Sub Machines Accessed 5 | . 5 . Terminals 3 | . 3 . Fabricators . | . . . Repair Stations 1 | . 1 . Recycling Units 1 | . 1 . Scanalyzers . | . . . Garrison Access . | . . . Total Hacks 17 | . 17 . Successful 11 | . 11 . Failed 5 | . 5 . Catastrophic . | . . . Database Lockouts 1 | . 1 . Manual 10 | . 10 . Terminals 8 | . 8 . Fabricators . | . . . Repair Stations 8 | . 8 . Recycling Units 1 | . 1 . Scanalyzers . | . . . Garrison Access . | . . . Terminal Hacks 1 | . 1 . Prototype ID Bank 1 | . 1 . Fabricator Hacks . | . . . Repair Station Hacks 6 | . 6 . Scan Component 3 | . 3 . Repair 3 | . 3 . Recycling Unit Hacks . | . . . Scanalyzer . | . . . Garrison Access Hacks . | . . . Unauthorized Hacks 4 | . 4 . Terminals 3 | . 3 . Botnet 3 | . 3 . Fabricators . | . . . Repair Stations . | . . . Recycling Units 1 | . 1 . Tunnel 1 | . 1 . Scanalyzers . | . . . Garrison Access . | . . . Data Cores Recovered . | . . . Used . | . . . Hacking Detections 4 | . 4 . Full Trace Events 1 | . 1 . Feedback Events . | . . . Feedback Blocked . | . . . Robot Schematics Acquired . | . . . Robots Built . | . . . Authchips . | . . . Time . | . . . Total Robot Build Rating . | . . . Part Schematics Acquired . | . . . Parts Built . | . . . Authchips . | . . . Time . | . . . Total Part Build Rating . | . . . Part Studies Acquired . | . . . Parts Repaired 3 | . 3 . Time 78 | . 78 . Parts Recycled . | . . . Recycled Matter . | . . . Retrieved Matter . | . . . Retrieved Components . | . . . Parts Scanalyzed . | . . . Part Schematics Acquired . | . . . Parts Damaged . | . . . Bothacking | -11 -10 -10 ------------ Run | Yrd Mat Sub Used RIF Installer . | . . . Robots Hacked . | . . . Non-combat . | . . . Combat . | . . . Robot Hacks Applied . | . . . Relay Couplers Released . | . . . Fabnet Peak Effective % . | . . . Robots Rewired . | . . . Allies Hacked . | . . . Hacks Repelled . | . . . Allies | -11 -10 -10 -------- Run | Yrd Mat Sub Total Allies . | . . . Largest Group . | . . . Highest-Rated Group . | . . . Highest-Rated Ally . | . . . Total Orders . | . . . Ally Attacks . | . . . Total Damage . | . . . Kills . | . . . Allies Corrupted . | . . . Allies Melted . | . . . Intel | -11 -10 -10 ------- Run | Yrd Mat Sub Active Infowar (turns) . | . . . Robot Analysis Total . | . . . Derelict Logs Recovered . | . . . Drone Launches . | . . . Drone Recoveries . | . . . Exploration | -11 -10 -10 ------------- Run | Yrd Mat Sub Turns Passed 1523 | 28 835 660 Spaces Moved 804 | 9 428 367 Core . | . . . Treads 173 | 9 76 88 Legs . | . . . Wheels 631 | . 352 279 Hover . | . . . Flight . | . . . Fastest Speed 100 | 160 100 120 Average Speed 134 | 160 124 143 Slowest Speed 240 | 160 240 240 Overloaded Moves . | . . . Propulsion Burnouts . | . . . Robots Hopped . | . . . Potential Cave-ins . | . . . Cave-ins Triggered . | . . . Exploration Rate (%) 32 | 2 72 24 Regions Visited 2 Branch Regions 1 Pre-discovered Areas 1 | . 1 . Known Exits Taken . | . . . Unknown Exits Taken 2 | 1 1 . Scrap Searched 3 | . . 3 Spaces Dug . | . . . Terrain Destroyed . | . . . Melee . | . . . Projectile . | . . . AOE . | . . . Terrain Rammed . | . . . Walls Destroyed . | . . . Machines Disabled . | . . . Actions | -11 -10 -10 --------- Run | Yrd Mat Sub Total 1078 | 17 623 438 Wait 134 | . 110 24 Move 802 | 8 427 367 Hop . | . . . Pick Up 11 | 1 9 1 Fast Attach 7 | . 4 3 Attach 4 | . 1 3 Detach 2 | . . 2 Swap 14 | 3 7 4 Drop 16 | 2 11 3 Fire 88 | 3 54 31 Melee . | . . . Ram . | . . . Kick . | . . . Crush . | . . . Escape Stasis . | . . . Rewire . | . . . Trap . | . . . Miscellaneous . | . . . Route ------- -11/Scrapyard -10/Materials (discovered 3 exits: [*Mat] / [*Min] / [*Sub]) -10/Subcaves (discovered 1 exit: [*Scr]) History --------- Turn | Location | Event 10 | -11/Scrapyard | Discovered new exit (range 3) 29 | -11/Scrapyard | Entered Materials 44 | -10/Materials | Central database locked down 246 | -10/Materials | Discovered new exit (range 11) 318 | -10/Materials | Build established: Mutant 494 | -10/Materials | Discovered new exit (range 13) 682 | -10/Materials | Discovered new exit (range 8) 766 | -10/Materials | Repaired Sml. Laser 793 | -10/Materials | Repaired Lgt. Treads 821 | -10/Materials | Repaired Med. Laser 838 | -10/Materials | Core integrity fell below 50% 864 | -10/Materials | Entered Subcaves 865 | -10/Subcaves | Approached by a straggling Scientist 991 | -10/Subcaves | A swath of the cavern ceiling suddenly collapsed 1287 | -10/Subcaves | Disturbed a concealed Subdweller 1501 | -10/Subcaves | Core integrity fell below 20% 1524 | -10/Subcaves | Destroyed by TG-K7E(R) with Subdweller Beam Cannon Last Messages --------------- 01299_ Searching scrap... 01299_ Found Sub. Optics. 01299_ Found 50 Matter. 01303_ Dropped Sub. Monowheel. 01304_ Acquired 10 matter. 01306_ Searching scrap... 01306_ Found Sub. Machine Gun. 01310_ Acquired Sub. Machine Gun. 01319_ Subatomizers dissect the Sub. Power Source. M9-1YA(c): "We're getting close, I can feel it." 01396_ K TRQ4G0|CZXBVKM>OLK 01399_ M9-1YA(c) exits level. 01453_ System corrupted: Component data lost. 01496_ I6-VCS(R) destroyed. 01499_ Sub. Laser shoots sparks and powers down. 01510_ Critical hit (Meltdown: +270). 01515_ System corrupted: Matter fused (-10). 01522_ Destroyed Scrap Shield. Map ----- +----------------------------------------------------+ | | | | | | | ????????????????????????????????????????????? | | ????????????????????????????????????????????? | | ????????????????????????????????????????????? | | ????????????????????????????????????????????? | | ????????????????????????????????????????????? | | ????????????????????????????????????????????? | | ????????????????????????????????????????????? | | ????????????????????????????????????????????? | | ????????????????????????????????????????????? | | ????????????????????????????????????????????? | | ????????????????????????????????????????????? | | ????????????????????????????????????????????? | | ????????????????????????????????????????????? | | ????????????????????????????????????????????? | | ???????????????????????????#######??????????? | | ??????????????????????????## ##???????### | | ????????????????????????### ##???### # | | ????????????????????##### ## #??## | | ???????????????????## #### ##?## | | ??????????????????## ##??# ##??# | | ?????????????????## #####???# ##?# | | ????????????????## R####????# ## | | ???????????????## @% #????## | | ???????????????# #;# ##????# ## # | | ???????????????# ## # #????## #### #? | | ???????????????####### ##?????## ### #?? | | ?????????????????????# #??????# # ### | | ?????????????????????## ###????# # # | | ??????????????????????# "#????## | | ??????????????????? ##????# ## | | ????????????????# #????## ## | | ????????????????# #?????# ## | | ????????????????# #????## ## | | ???????????????# ###????# #####> | | ???????????????## # ##??????# ##??## | | ????????????????# ####??????## ##??# | | ????????????????## ??????????# #### # | | ?????????????????## ??????????# ##### | | ??????????????????# ??????##??## #??? | | ??????????????????# ###### #??## #??? | | ?????????????????? ##### #### | | ?????????????????? ## # | | ???????????????????????????# | | ???????????????????????????# | | ???????????????????????????# #### ### | | ???????????????????????????# #??## # # | | ???????????????????????????# ## ##### | +----------------------------------------------------+ Best States ------------- Heat Dissipation 39 Energy Generation 10 Energy Capacity 250 Matter Stores 300 Matter Capacity 300 Sight Range 16 Terrain Scan Density 10 Evasion (%) 40 Recoil Reduction 2 Item Schematics ----------------- None Robot Schematics ------------------ None Fabricated ------------ Nothing Repaired ---------- Sml. Laser | 12% | -10/Materials Lgt. Treads | 29% | -10/Materials Med. Laser | 35% | -10/Materials Studied --------- None Alien Tech Used ----------------- None Achievements -------------- None Challenges ------------ None Game ------ Seed StasisGhostTendrils Manual? 0 Play Time 00:10:32 Cumulative 251.2 hours Start 2026.05.01 @ 00:57:24 End 2026.05.01 @ 01:07:40 Sessions 1 Manual Loads 0 Difficulty Rogue Special Mode None Game No. 136 Rogue 136 Adventurer 0 Explorer 0 Win Type - Total 9 Types 5/0/2/1/0/0/0/1/0/0 Lore% 72 Gallery% 65 Achievement% 57 Wizard Run 0 Options --------- Layout 2 ASCII 0 Keyboard 1 Movement Arrows Keybinds 0 Fullscreen 2 Font 24/Terminus Map View 50x44 Zoom Use 0% Tactical HUD 1 Map Filters NONE Filters NONE Steam 1 RUN: d6abe2fa-6c32-46f9-8cd9-6d8424a89dc2